Workbook

Sheet © (hidden)
A1: NPV Calculator
A2: © 2009 Vertex42 LLC. All Rights Reserved.
A3: http://www.vertex42.com/Calculators/npv-irr-calculator.html

Sheet NPV
A1: NPV Calculator
A2: Add custom cash flows or create auto-generated cash flow series (uniform, gradient, and exponential series). | M2: © 2009 Vertex42 LLC
A3: You can delete, copy, and insert new columns, but make sure the Sum column is correct after making changes. | M3: NPV Calculator
A4: The Net Present Value for each series is calculated, along with the Total NPV. Edit the light-blue cells.
A5: The IRR function is used to calculate the overall Internal Rate of Return. It requires an initial guess.
C7: NPV | D7: =C20+NPV(D10,C21:C60) -> 14,649.49
C8: IRR | D8: =IRR(C20:C60,0.1) -> 9.054%
C10: Discount Rate (i) | D10: 6%
D12: Auto-Generated Cash Flow Series
C13: Series Type: | D13: Uniform (A) | E13: Gradient (G) | F13: Exp Grad | G13: none
C14: Value (A, G, or Eo): | D14: 100 | E14: 100 | F14: 100
C15: g (for Exp Grad): | F15: 5%
C16: Periods: | D16: 5 | E16: 10 | F16: 7 | I16: Custom Cash Flow Series
C17: NPV: | D17: =D20+NPV($D$10,D21:D60) -> 421.24 | E17: 2,960.23 | F17: 674.08 | G17: 0 | H17: 2,148.66 | I17: 4,471.70 | J17: (1,872.95) | K17: 5,846.53
G18: IRR: | H18: =IRR(H20:H60,0.1) -> 16.34% | I18: =IRR(I20:I60,0.1) -> 9.63% | J18: =IRR(J20:J60,0.1) -> 4.14% | K18: =IRR(K20:K60,0.1) -> 8.66%
B19: Period | C19: Sum | D19: Series 1 | E19: Series 2 | F19: Series 3 | G19: Series 4 | H19: Label 1 | I19: Label 2 | J19: Label 3 | K19: Label 4
B20: 0 | C20: =SUM(D20:K20) -> (150,000.00) | D20: 0 | E20: 0 | F20: 0 | G20: 0 | I20: (40,000.00) | J20: (40,000.00) | K20: (70,000.00)
B21: 1 | C21: =SUM(D21:K21) -> 18,205.00 | D21: =IF($B21<=D$16,IF(D$13="none",0,IF(D$13="Uniform (A)",D$14,IF(D$13="Gradient (G)",D$14*($B21-1),IF(D$13="Exp Grad",D$14*(1+D$15)^$B21,"n/a")))),0) -> 100.00 | E21: =IF($B21<=E$16,IF(E$13="none",0,IF(E$13="Uniform (A)",E$14,IF(E$13="Gradient (G)",E$14*($B21-1),IF(E$13="Exp Grad",E$14*(1+E$15)^$B21,"n/a")))),0) -> 0 | F21: 105.00 | G21: 0 | H21: (10,000.00) | I21: 8,000.00 | J21: 8,000.00 | K21: 12,000.00
B22: 2 | C22: 36,710.25 | D22: =IF($B22<=D$16,IF(D$13="none",0,IF(D$13="Uniform (A)",D$14,IF(D$13="Gradient (G)",D$14*($B22-1),IF(D$13="Exp Grad",D$14*(1+D$15)^$B22,"n/a")))),0) -> 100.00 | E22: 100.00 | F22: 110.25 | G22: 0 | H22: 3,000.00 | I22: 9,200.00 | J22: 9,200.00 | K22: 15,000.00
B23: 3 | C23: 42,615.76 | D23: 100.00 | E23: 200.00 | F23: 115.76 | G23: 0 | H23: 4,200.00 | I23: 10,000.00 | J23: 10,000.00 | K23: 18,000.00
B24: 4 | C24: 52,321.55 | D24: 100.00 | E24: 300.00 | F24: 121.55 | G24: 0 | H24: 6,800.00 | I24: 12,000.00 | J24: 12,000.00 | K24: 21,000.00
B25: 5 | C25: 55,627.63 | D25: 100.00 | E25: 400.00 | F25: 127.63 | G25: 0 | I25: 14,500.00 | J25: 14,500.00 | K25: 26,000.00
B26: 6 | C26: (8,365.99) | D26: 0 | E26: 500.00 | F26: 134.01 | G26: 0 | J26: (9,000.00)
B27: 7 | C27: 740.71 | D27: 0 | E27: 600.00 | F27: 140.71 | G27: 0
B28: 8 | C28: 700.00 | D28: 0 | E28: 700.00 | F28: 0 | G28: 0
B29: 9 | C29: 800.00 | D29: 0 | E29: 800.00 | F29: 0 | G29: 0
B30: 10 | C30: 900.00 | D30: 0 | E30: 900.00 | F30: 0 | G30: 0
B31: 11 | C31: 0 | D31: 0 | E31: 0 | F31: 0 | G31: 0
B32: 12 | C32: 0 | D32: 0 | E32: 0 | F32: 0 | G32: 0
B33: 13 | C33: 0 | D33: 0 | E33: 0 | F33: 0 | G33: 0
B34: 14 | C34: 0 | D34: 0 | E34: 0 | F34: 0 | G34: 0
B35: 15 | C35: 0 | D35: 0 | E35: 0 | F35: 0 | G35: 0
B36: 16 | C36: 0 | D36: 0 | E36: 0 | F36: 0 | G36: 0
B37: 17 | C37: 0 | D37: 0 | E37: 0 | F37: 0 | G37: 0
B38: 18 | C38: 0 | D38: 0 | E38: 0 | F38: 0 | G38: 0
B39: 19 | C39: 0 | D39: 0 | E39: 0 | F39: 0 | G39: 0
B40: 20 | C40: 0 | D40: 0 | E40: 0 | F40: 0 | G40: 0
B41: 21 | C41: 0 | D41: 0 | E41: 0 | F41: 0 | G41: 0
B42: 22 | C42: 0 | D42: 0 | E42: 0 | F42: 0 | G42: 0
B43: 23 | C43: 0 | D43: 0 | E43: 0 | F43: 0 | G43: 0
B44: 24 | C44: 0 | D44: 0 | E44: 0 | F44: 0 | G44: 0
B45: 25 | C45: 0 | D45: 0 | E45: 0 | F45: 0 | G45: 0
B46: 26 | C46: 0 | D46: 0 | E46: 0 | F46: 0 | G46: 0
B47: 27 | C47: 0 | D47: 0 | E47: 0 | F47: 0 | G47: 0
B48: 28 | C48: 0 | D48: 0 | E48: 0 | F48: 0 | G48: 0
B49: 29 | C49: 0 | D49: 0 | E49: 0 | F49: 0 | G49: 0
B50: 30 | C50: 0 | D50: 0 | E50: 0 | F50: 0 | G50: 0
B51: 31 | C51: 0 | D51: 0 | E51: 0 | F51: 0 | G51: 0
B52: 32 | C52: 0 | D52: 0 | E52: 0 | F52: 0 | G52: 0
B53: 33 | C53: 0 | D53: 0 | E53: 0 | F53: 0 | G53: 0
B54: 34 | C54: 0 | D54: 0 | E54: 0 | F54: 0 | G54: 0
B55: 35 | C55: 0 | D55: 0 | E55: 0 | F55: 0 | G55: 0
B56: 36 | C56: 0 | D56: 0 | E56: 0 | F56: 0 | G56: 0
B57: 37 | C57: 0 | D57: 0 | E57: 0 | F57: 0 | G57: 0
B58: 38 | C58: 0 | D58: 0 | E58: 0 | F58: 0 | G58: 0
B59: 39 | C59: 0 | D59: 0 | E59: 0 | F59: 0 | G59: 0
B60: 40 | C60: 0 | D60: 0 | E60: 0 | F60: 0 | G60: 0

Sheet XNPV
A1: XIRR, XNPV Calculator
A2: This worksheet uses the XNPV function to calculate the Net Present Value | K2: © 2009 Vertex42 LLC
A3: for a schedule of cash flows that are not necessarily periodic. The XNPV | K3: NPV Calculator
A4: function requires the Analysis ToolPak add-in (see Help on XNPV function).
A5: It assumes 365 days in the year. The XIRR function is used to calculated
A6: the Internal Rate of Return. The dates do not need to be in order. You can
A7: have multiple cash flows with the same date.
B9: Discount Rate | C9: 8%
H10: Days in Year | I10: 365
B11: NPV | C11: =XNPV($C$9,OFFSET(C14,1,0,MATCH(9.99E+307,C:C)-ROW(C14),1),OFFSET(B14,1,0,MATCH(9.99E+307,B:B)-ROW(B14),1)) -> 2,180.51 | E11: NPV | F11: =XNPV($C$9,F15:F19,E15:E19) -> 2,180.51 | H11: NPV | I11: =SUM(I15:I19/((1+$C$9)^((H15:H19-INDEX(H15:H19,1))/I10))) -> 2,180.51
B12: IRR | C12: =XIRR(OFFSET(C14,1,0,MATCH(9.99E+307,C:C)-ROW(C14),1),OFFSET(B14,1,0,MATCH(9.99E+307,B:B)-ROW(B14),1),0.1) -> 37.34% | E12: IRR | F12: =XIRR(F15:F19,E15:E19,0.1) -> 37.34%
B13: Using Dynamic Ranges | E13: Using the Exact Range | H13: Using an Array Formula
B14: Date | C14: Value | E14: Date | F14: Value | H14: Date | I14: Value
B15: 2008-01-01 | C15: (10,000.00) | E15: 2008-01-01 | F15: (10,000.00) | H15: 2008-01-01 | I15: (10,000.00)
B16: 2008-03-01 | C16: 2,750.00 | E16: 2008-03-01 | F16: 2,750.00 | H16: 2008-03-01 | I16: 2,750.00
B17: 2008-10-30 | C17: 4,250.00 | E17: 2008-10-30 | F17: 4,250.00 | H17: 2008-10-30 | I17: 4,250.00
B18: 2009-02-15 | C18: 3,250.00 | E18: 2009-02-15 | F18: 3,250.00 | H18: 2009-02-15 | I18: 3,250.00
B19: 2009-04-01 | C19: 2,750.00 | E19: 2009-04-01 | F19: 2,750.00 | H19: 2009-04-01 | I19: 2,750.00

Sheet TermsOfUse
A1: Terms of Use
A3: © 2011 Vertex42 LLC. All rights reserved.
A5: This template is considered a copyrighted work under the Unites States and other copyright laws and is the property of Vertex42 LLC. The items listed below are additional points to help clarify how you may use this template.
A8: Not for Resale or Public Sharing
A10: You may make archival copies and customize this template only for your personal use or use within your company or organization and not for resale or public sharing.
A12: You may not remove or alter any logo, trademark, copyright, disclaimer, brand, terms of use, attribution, or other proprietary notices or marks within this template.
A14: This template and any customized or modified version of this template may NOT be sold, distributed, published to an online gallery, hosted on a website, or placed on a public server.
A17: Limited Private Sharing
A19: Provided that you observe the above terms, you may share your edited version of this template *privately* with those specific people who **require** access to it within your immediate family, organization, or company.
A21: * "Privately" means only accessible to those few people who you expressively give permission to view or edit your file. It is your responsibility to ensure that adequate security measures are used so that your file is not available to the public.
A23: ** Examples of acceptable private sharing with people who "require access" may include (a) sharing a budget spreadsheet with a spouse, (b) sharing a project schedule with your project team, or (c) sharing a timesheet with your employee or manager.
A25: See the following page on Vertex42.com for the complete license agreement and examples of other allowed uses:
A26: http://www.vertex42.com/licensing/EULA_privateuse.html
A29: Disclaimer
A31: This template is provided for informational or educational use only and is not intended to be relied on as medical, financial, legal, or other professional advice.
A33: Vertex42 LLC makes no guarantee or representations about this template, or the accuracy or completeness of the content contained within this template.
A35: Vertex42 LLC encourages you to seek the aid of a qualified professional before making decisions regarding health, financial, or legal issues.
